Cogmind - Beta 16 @@@ ROGUE MODE // 2026.01.30 @ 13:03:35 Player: Tibo Result: Destroyed by D-53 Grenadier with Mini Grenade Launcher Performance ------------- Evolutions (1) 500 Regions Visited (3) 600 Robots Destroyed (40) 200 Value Destroyed (629) 629 Prototype IDs (0) 0 Alien Tech Used (0) 0 Bonus (0) 0 TOTAL SCORE: 1929 Bonus ------- None Cogmind --------- Core Integrity 0/400 Matter 166/300 Energy 92/100 System Corruption 2% Temperature Cool (0) Movement Rolling (90) Location -9/Mines Parts ------- > --- POWER (1) -------- (None) > --- PROPULSION (3) --- Armored Wheel > --- UTILITY (3) ------ Small Storage Unit Utility Shielding Utility Shielding > --- WEAPON (2) ------- (None) > --- INVENTORY (8) ---- Aluminum Leg Aluminum Leg Seismic Detector Tractor Beam Heavy Hammer Peak State ------------ > --- POWER ------------ Ion Engine > --- PROPULSION ------- Aluminum Leg Aluminum Leg Aluminum Leg > --- UTILITY ---------- Small Storage Unit Utility Shielding Utility Shielding > --- WEAPON ----------- Rocket Launcher Heavy Hammer > --- INVENTORY -------- Aluminum Leg Aluminum Leg Armored Wheel Seismic Detector Tractor Beam Grenade Launcher Grenade Launcher Grenade Launcher [Rating: 11] Favorites ----------- Power Ion Engine Engine Ion Engine Propulsion Aluminum Leg Leg Aluminum Leg Wheel Wheel Utility Utility Shielding Device Seismic Detector Storage Small Storage Unit Protection Utility Shielding Weapon Grenade Launcher Energy Gun Small Laser Ballistic Gun Assault Rifle Launcher Grenade Launcher Special Weapon Mining Laser Impact Weapon Heavy Hammer Build | -11 -10 -9 -9 ------- Run | Yrd Mat Mat Min Slots Evolved 2 | . . 2 . Power . | . . . . Propulsion 1 | . . 1 . Utility 1 | . . 1 . Weapon . | . . . . Parts Attached 26 | 9 10 5 2 Power 4 | 2 1 1 . Engine 4 | 2 1 1 . Core . | . . . . Reactor . | . . . . Propulsion 8 | 2 4 1 1 Treads . | . . . . Leg 5 | . 4 1 . Wheel 3 | 2 . . 1 Hover . | . . . . Flight . | . . . . Utility 5 | 3 1 1 . Device 2 | 2 . . . Storage 1 | 1 . . . Processor . | . . . . Hackware . | . . . . Protection 2 | . 1 1 . Artifact . | . . . . Weapon 9 | 2 4 2 1 Energy Gun 2 | 1 1 . . Energy Cannon . | . . . . Ballistic Gun 1 | 1 . . . Ballistic Cannon . | . . . . Launcher 4 | . 2 1 1 Special Weapon 1 | . 1 . . Impact Weapon 1 | . . 1 . Slashing Weapon . | . . . . Piercing Weapon . | . . . . Special Melee Weapon . | . . . . Unidentified Prototypes . | . . . . Parts Lost 14 | . 4 2 8 Power 3 | . 1 1 1 Propulsion 4 | . 1 . 3 Utility . | . . . . Weapon 7 | . 2 1 4 Highest Loss Streak 6 | . 2 1 6 To Critical Strikes . | . . . . Average Backups 6 | 4 7 6 7 Power . | . . . . Propulsion 2 | 1 2 2 2 Utility 2 | . 2 2 2 Weapon 2 | 1 2 2 2 Tool/Special . | . . . . Unused Backups 2 | . 1 . 1 Power . | . . . . Propulsion 1 | . 1 . . Utility 1 | . . . 1 Weapon . | . . . . Tool/Special . | . . . . Average Slot Usage (%) 94 | . 98 96 88 Engine 8 | . 14 9 4 Leg 27 | . 13 33 32 Wheel 3 | . 14 . . Storage 11 | . 14 11 11 Protection 19 | . 12 21 22 Energy Gun 4 | . 14 1 . Launcher 10 | . 9 12 9 Impact Weapon 5 | . . 7 8 Peak Build Rating 11 | 9 8 10 11 Average Rating 8 | 6 7 9 9 On Entrance 6 | . 8 7 10 Avg Prop Armor Cover (%) . | . . . . Naked Turns . | . . . . Heaviest Build 18 | 14 15 18 18 Greatest Support 30 | 20 20 30 30 Greatest Overweight (x) 1 | . 1 . . Average Overweight (x) . | . . . . Largest Inventory Capacity 8 | 8 8 8 8 Average Capacity 7 | 6 8 8 8 Most Carried 8 | 8 8 7 8 Average Carried 6 | 4 7 6 7 Final Capacity 8 | 8 8 8 8 Final Carried 8 | 8 8 7 5 Class Distribution -------------------- 69% | Mutant 30% | Scavenger-Mutant Dominant Class ---------------- Mutant | -10/Materials Scavenger-Mutant | -9/Materials Mutant | -9/Mines Resources | -11 -10 -9 -9 ----------- Run | Yrd Mat Mat Min Matter Collected 660 | 320 135 175 30 Remotely . | . . . . Salvage Created 1059 | 161 247 348 303 Parts 57 | 15 18 17 7 Haulers Intercepted . | . . . . Recyclers Shooed 1 | . . . 1 Parts Field Recycled . | . . . . Retrieved Matter . | . . . . Parts Self-Destructed . | . . . . Prevented . | . . . . Parts Restored . | . . . . Kills | -11 -10 -9 -9 ------- Run | Yrd Mat Mat Min Combat Hostiles Destroyed 23 | . 7 6 10 Melee 1 | . . . 1 Guns 2 | . 2 . . Cannons 1 | . 1 . . AOE 16 | . 4 6 6 Classes Destroyed 8 | 3 3 . 2 Worker 9 | 2 . 4 3 Builder 5 | . 2 3 . Tunneler 3 | 3 . . . Recycler 5 | 1 . 1 3 Watcher 1 | . 1 . . Swarmer 4 | . . . 4 Grunt 13 | . 7 6 . Assembled 6 | . . . 6 Best Kill Streak 6 | 3 5 6 6 Combat Bots Only 6 | . 3 3 6 Max Kills in Single Turn 4 | 1 3 2 4 Gunslinging . | . . . . Exploded 4 | . 1 2 4 Melee 1 | . . . 1 Uniques/NPCs Destroyed . | . . . . Combat | -11 -10 -9 -9 -------- Run | Yrd Mat Mat Min Hostile Shots Fired 90 | . 28 14 48 Missed 23 | . 4 5 14 Hits 67 | . 24 9 34 Projectile 67 | . 24 9 34 AOE 15 | . . . 15 Damage Taken 1365 | . 400 179 786 Core 483 | . 58 55 370 Absorbed by Shields . | . . . . Core Remaining (%) 88 | 100 76 . . Volleys Fired 43 | 10 19 7 7 Largest 2 | 2 2 2 2 Hottest 140 | 60 140 70 63 Shots Fired 74 | 20 32 10 12 Gun 44 | 20 23 1 . Cannon . | . . . . Launcher 27 | . 6 9 12 Special 3 | . 3 . . Kinetic 10 | 10 . . . Thermal 33 | 10 22 1 . Explosive 27 | . 6 9 12 Electromagnetic 4 | . 4 . . Robot Hit Streak 9 | 4 9 4 4 Robot Miss Streak 3 | 3 1 2 1 Penetration Max . | . . . . Secondary Targets . | . . . . Shots Hit Robots 61 | 11 15 17 18 Core Hits 57 | 7 17 10 23 Critical Kills 2 | . . 2 . Critical Parts Destroyed 4 | 1 . . 3 Critical Strikes 6 | 1 . 2 3 Destroy 1 | 1 . . . Smash 5 | . . 2 3 Melee Attacks 27 | . . 10 17 Impact 27 | . . 10 17 Slashing . | . . . . Piercing . | . . . . Sneak Attacks 16 | . . 9 7 Combat Hostiles . | . . . . Follow-up Attacks . | . . . . Damage Inflicted 3151 | 117 522 1157 1355 Guns 286 | 117 159 10 . Cannons . | . . . . Explosions 1383 | . 339 452 592 Melee 1458 | . . 695 763 Ramming . | . . . . Kinetic 44 | 44 . . . Thermal 286 | 73 203 10 . Explosive 1324 | . 280 452 592 Electromagnetic 39 | . 39 . . Impact 1458 | . . 695 763 Slashing . | . . . . Piercing . | . . . . Highest Corruption 2 | . . 2 2 Average Corruption 2 | . . 2 2 Corruption Purged . | . . . . Corruption Blocked . | . . . . Effects 4 | . . 2 2 Matter Fused 1 | . . . 1 Heat Flow Errors 1 | . . . 1 Data Loss (minor) 1 | . . 1 . Alerts 1 | . . 1 . Overload Shots . | . . . . Overflow Damage 754 | . 12 360 382 Projectiles . | . . . . Explosions 46 | . 12 20 14 Melee 708 | . . 340 368 Knockbacks 3 | . . 2 1 Impact 3 | . . 2 1 Kinetic . | . . . . Secondary . | . . . . Self-Inflicted Damage 158 | . 76 69 13 Shots 6 | . 2 3 1 Rammed . | . . . . Targets Rammed . | . . . . Kicked . | . . . . Crushed . | . . . . Highest Temperature 224 | . 190 12 224 Average Temperature 72 | . 72 6 102 Received Heat Transfer 269 | . 186 63 20 Siege Activations . | . . . . Martial Activations . | . . . . Shielding Activations . | . . . . Robots Disrupted . | . . . . Combat Hostiles . | . . . . Robots Corrupted 6 | . . 2 4 Combat Hostiles 3 | . . . 3 Parts Fried 12 | . . 6 6 Impact Corruptions 25 | . . 11 14 Robots Melted . | . . . . Combat Hostiles . | . . . . Parts Melted . | . . . . Heat Transferred 575 | 175 375 25 . Parts Sabotaged . | . . . . Parts Stolen . | . . . . Parts Stripped . | . . . . Power Chain Reactions 1 | . 1 . . Alert | -11 -10 -9 -9 ------- Run | Yrd Mat Mat Min Maximum Alert Level . | . . . . Low Security (%) 100 | 100 100 100 100 Level 1 . | . . . . Level 2 . | . . . . Level 3 . | . . . . Level 4 . | . . . . Level 5 . | . . . . High Security . | . . . . Max Security . | . . . . Peak Influence 165 | 10 129 165 75 Initial 60 | . . 45 60 Average 62 | 1 55 118 48 Influence Increases 713 | 30 249 280 154 Destroy 0b10 Robot/C 340 | . 140 120 80 Destroy 0b10 Robot/NC 115 | 30 15 40 30 Destroy Leader 62 | . 32 20 10 Successful Hack 7 | . 7 . . Disable Machine 30 | . 30 . . Destroy Structure 99 | . 25 40 34 Partial Spotted 15 | . . 15 . Lose Combat Pursuer 45 | . . 45 . Influence Decreases 713 | 30 140 234 309 Entered New Map 159 | . . 64 95 Time Decay 430 | 30 100 150 150 Lost Part 124 | . 40 20 64 Squads Dispatched 3 | . 2 1 . Investigation 3 | . 2 1 . Extermination . | . . . . Reinforcement . | . . . . Assault . | . . . . Garrison . | . . . . Intercept . | . . . . Searches Triggered . | . . . . Construction Impeded . | . . . . Haulers Reinforced . | . . . . Active Scanning Responses . | . . . . Cargo Convoy Interrupts . | . . . . Stealth | -11 -10 -9 -9 --------- Run | Yrd Mat Mat Min Distress Signals 1 | . 1 . . Communications Jammed . | . . . . Distress Signals . | . . . . Times Spotted 36 | . 10 7 19 Peak Tracking Total 16 | . 3 3 16 Tactical Retreats 1 | . . 1 . Traps | -11 -10 -9 -9 ------- Run | Yrd Mat Mat Min Traps Triggered 2 | . 1 1 . Indirectly . | . . . . Trap Hack Attempts . | . . . . Triggered . | . . . . Disarmed . | . . . . Reprogrammed . | . . . . Reused . | . . . . Traps Extracted . | . . . . Installed . | . . . . Triggered . | . . . . Machines | -11 -10 -9 -9 ---------- Run | Yrd Mat Mat Min Machines Disabled 2 | . 2 . . Max in Single Turn 1 | . 1 . . Machines Repaired . | . . . . Machines Dismantled . | . . . . Machines Sabotaged . | . . . . Overloaded Fab Kills . | . . . . Hacking | -11 -10 -9 -9 --------- Run | Yrd Mat Mat Min Machines Accessed 5 | . 3 2 . Terminals 2 | . 2 . . Fabricators . | . . . . Repair Stations 1 | . 1 . . Recycling Units 1 | . . 1 . Scanalyzers 1 | . . 1 . Garrison Access . | . . . . Total Hacks 13 | . 8 5 . Successful 6 | . 1 5 . Failed 7 | . 7 . . Catastrophic 3 | . 3 . . Database Lockouts . | . . . . Manual . | . . . . Terminals 6 | . 6 . . Fabricators . | . . . . Repair Stations 2 | . 2 . . Recycling Units 2 | . . 2 . Scanalyzers 3 | . . 3 . Garrison Access . | . . . . Terminal Hacks 1 | . 1 . . Registered Components 1 | . 1 . . Fabricator Hacks . | . . . . Repair Station Hacks . | . . . . Recycling Unit Hacks 2 | . . 2 . Report Inventory 1 | . . 1 . Retrieve Components 1 | . . 1 . Scanalyzer 3 | . . 3 . Insert Component 1 | . . 1 . Analyze 1 | . . 1 . Retrieve Study 1 | . . 1 . Garrison Access Hacks . | . . . . Unauthorized Hacks . | . . . . Terminals . | . . . . Fabricators . | . . . . Repair Stations . | . . . . Recycling Units . | . . . . Scanalyzers . | . . . . Garrison Access . | . . . . Data Cores Recovered . | . . . . Used . | . . . . Hacking Detections 4 | . 3 1 . Full Trace Events 2 | . 1 1 . Feedback Events . | . . . . Feedback Blocked . | . . . . Robot Schematics Acquired . | . . . . Robots Built . | . . . . Authchips . | . . . . Time . | . . . . Total Robot Build Rating . | . . . . Part Schematics Acquired 1 | . . 1 . Parts Built . | . . . . Authchips . | . . . . Time . | . . . . Total Part Build Rating . | . . . . Part Studies Acquired 1 | . . 1 . Parts Repaired . | . . . . Time . | . . . . Parts Recycled . | . . . . Recycled Matter . | . . . . Retrieved Matter . | . . . . Retrieved Components 1 | . . 1 . Parts Scanalyzed 1 | . . 1 . Part Schematics Acquired 1 | . . 1 . Parts Damaged . | . . . . Bothacking | -11 -10 -9 -9 ------------ Run | Yrd Mat Mat Min Used RIF Installer . | . . . . Robots Hacked . | . . . . Non-combat . | . . . . Combat . | . . . . Robot Hacks Applied . | . . . . Relay Couplers Released . | . . . . Fabnet Peak Effective % . | . . . . Robots Rewired . | . . . . Allies Hacked . | . . . . Hacks Repelled . | . . . . Allies | -11 -10 -9 -9 -------- Run | Yrd Mat Mat Min Total Allies . | . . . . Largest Group . | . . . . Highest-Rated Group . | . . . . Highest-Rated Ally . | . . . . Total Orders . | . . . . Ally Attacks . | . . . . Total Damage . | . . . . Kills . | . . . . Allies Corrupted . | . . . . Allies Melted . | . . . . Intel | -11 -10 -9 -9 ------- Run | Yrd Mat Mat Min Active Infowar (turns) 134 | 113 21 . . Terrain 31 | 31 . . . Seismic 103 | 82 21 . . Robot Analysis Total . | . . . . Derelict Logs Recovered 1 | . . . 1 Drone Launches . | . . . . Drone Recoveries . | . . . . Exploration | -11 -10 -9 -9 ------------- Run | Yrd Mat Mat Min Turns Passed 1044 | 180 238 312 314 Spaces Moved 785 | 161 160 243 221 Core 2 | 2 . . . Treads . | . . . . Legs 538 | . 77 243 218 Wheels 245 | 159 83 . 3 Hover . | . . . . Flight . | . . . . Fastest Speed 50 | 50 80 105 90 Average Speed 98 | 79 99 105 104 Slowest Speed 120 | 80 120 120 105 Overloaded Moves . | . . . . Propulsion Burnouts . | . . . . Robots Hopped . | . . . . Potential Cave-ins . | . . . . Cave-ins Triggered . | . . . . Exploration Rate (%) 18 | 5 27 14 27 Regions Visited 3 Branch Regions 1 Pre-discovered Areas . | . . . . Known Exits Taken . | . . . . Unknown Exits Taken 3 | 1 1 1 . Scrap Searched . | . . . . Spaces Dug 9 | . 9 . . Terrain Destroyed 128 | . 31 40 57 Melee . | . . . . Projectile . | . . . . AOE 128 | . 31 40 57 Terrain Rammed . | . . . . Walls Destroyed . | . . . . Machines Disabled . | . . . . Actions | -11 -10 -9 -9 --------- Run | Yrd Mat Mat Min Total 915 | 188 199 268 260 Wait 10 | . 1 . 9 Move 782 | 160 159 242 221 Hop . | . . . . Pick Up 15 | 9 5 1 . Fast Attach 8 | 6 . 2 . Attach 10 | 1 4 2 3 Detach . | . . . . Swap 16 | 2 8 3 3 Drop 4 | . 3 1 . Fire 43 | 10 19 7 7 Melee 27 | . . 10 17 Ram . | . . . . Kick . | . . . . Crush . | . . . . Escape Stasis . | . . . . Rewire . | . . . . Trap . | . . . . Miscellaneous . | . . . . Route ------- -11/Scrapyard -10/Materials -9/Materials -9/Mines (discovered 1 exit: [*Mat]) History --------- Turn | Location | Event 26 | -11/Scrapyard | Discovered new exit (range 16) 181 | -11/Scrapyard | Entered Materials 303 | -10/Materials | Discovered new exit (range 13) 321 | -10/Materials | Build established: Mutant 419 | -10/Materials | Entered another Materials area 419 | -9/Materials | Evolved 2 slots: Propulsion x1, Utility x1 421 | -9/Materials | Discovered new exit (range 8) 731 | -9/Materials | Entered Mines 731 | -9/Mines | Discovered new exit (range 9) 738 | -9/Mines | Received a Rocket Launcher from a helpful Derelict 791 | -9/Mines | Learned Materials emergency access door positions 837 | -9/Mines | Build established: Scavenger-Mutant 962 | -9/Mines | Assembled infested the area 1034 | -9/Mines | Core integrity fell below 50% 1042 | -9/Mines | Core integrity fell below 20% 1045 | -9/Mines | Destroyed by D-53 Grenadier with Mini Grenade Launcher Last Messages --------------- 00989_ HV Slug penetrates as-33836. 00989_ HV Slug penetrates Earth. 00991_ HV Slug penetrates as-33836. 00991_ as-33836 suffers critical hit (Destroy). 00991_ as-33836 destroyed. 00991_ HV Slug penetrates Earth. 01020_ System corrupted: Heat flow error (+249). 01020_ K-01 Serf collects debris. 01031_ K-01 Serf destroyed. 01032_ Rocket Launcher destroyed. 01035_ The unstable cave ceiling collapses. 01036_ R-06 Scavenger destroyed. 01036_ Aluminum Leg+ destroyed. 01037_ The unstable cave ceiling collapses. 01039_ Aluminum Leg+ destroyed. 01039_ Grenade Launcher destroyed. 01041_ Aluminum Leg+ destroyed. 01042_ The unstable cave ceiling collapses. 01043_ U-05 Engineer destroyed. 01044_ The unstable cave ceiling collapses. Map ----- +----------------------------------------------------+ | | | | | | | | | | | | | | | | | | | | | | | | | | | | | | | | | | | ?????????????????????## ### ## ###?????? | | ?????????????????????# ?##??? | | ?????????????????????# ##?? | | ???????????????????### ##? | | ??????????????????## dd ## | | ?????????????????## [[ % # | | ?????????????????# | | ?????????????????# # | | ????????????????## @ # # # ?? | | ????????????????# ##### ????? | | ????????????????# ! #??# ###?????? | | ????????????????## % #### #????????? | | ?????????????????# # ## ## ##???????? | | ?????????????????# ####### #???????? | | ?????????????????# ##?????## #???????? | | ?????????????????## ##???????#### #??????? | | ??????????????????# #???????????## #?????? | | ??????????????????# *#????????????## #?????? | | ???# ############## %#?????????????## ##?????? | | ???# % %% %%%[#??????????????#######??????? | | ????########### #### #???????????????????????????? | | ??????????????#%##?# #???????????????????????????? | | ?????????????## ### #???????????????????????????? | | ?????????????# ## #???????????????????????????? | | ??####??????## # #???????????????????????????? | | ?## ######## # #???????????????????????????? | | ## """ #???????????????????????????? | | # """ ###???????????????????????????? | | # < ##### """ #?????????????????????????????? | | ## ##???# #?????????????????????????????? | | ?######????## #?????????????????????????????? | | ????????????## #?????????????????????????????? | | ?????????????# #?????????????????????????????? | +----------------------------------------------------+ Best States ------------- Heat Dissipation 28 Energy Generation 10 Energy Capacity 250 Matter Stores 300 Matter Capacity 300 Sight Range 16 Terrain Scan Range 16 Terrain Scan Density 10 Utility Shielding 33 Evasion (%) 55 Item Schematics ----------------- Aluminum Leg | -9/Materials | Scanalyzed Robot Schematics ------------------ None Fabricated ------------ Nothing Repaired ---------- Nothing Studied --------- Aluminum Leg | -9/Materials | Hacked Alien Tech Used ----------------- None Achievements -------------- None Challenges ------------ None Game ------ Seed OpticalRingReconstructor Manual? 0 Play Time 00:13:39 Cumulative 22.6 hours Start 2026.01.30 @ 12:52:46 End 2026.01.30 @ 13:03:35 Sessions 1 Manual Loads 0 Difficulty Rogue Special Mode None Game No. 28 Rogue 28 Adventurer 0 Explorer 0 Win Type - Total 0 Types 0/0/0/0/0/0/0/0/0/0 Lore% 13 Gallery% 23 Achievement% 14 Wizard Run 0 Options --------- Layout 1 ASCII 0 Keyboard 1 Movement Vi Keybinds 0 Fullscreen 1 Font 24/Smallcaps Map View 50x35 Zoom Use 0% Tactical HUD 1 Map Filters NONE Filters NONE Steam 1 RUN: 0cf42191-6eed-489b-bde8-a658c9c890f2